bitfinex-derivatives/quotes_SOLF0:USTF0_20250905
["timestamp","ask_amount","ask_price","bid_price","bid_amount"]
[1757092575397,2.16420679,203.4,203.26,69.72575723]
[1757092575599,7.45,203.39,203.33,2.16420679]
[1757092575991,0.03678441,203.38,203.35,10.18420679]
[1757092576496,0.03678441,203.38,203.35,8.02]
[1757092577598,0.03678441,203.38,203.34,2.16420679]
[1757092577897,0.03678441,203.38,203.36,10.18420679]
[1757092578496,0.03678441,203.38,203.37,8.09]
[1757092583188,7.92,203.46,203.37,8.09]
[1757092583189,7.92,203.46,203.37,8.59]
[1757092583393,2.16420679,203.49,203.43,2.16420679]
[1757092583593,7.92,203.5,203.43,2.16420679]
[1757092584195,4.922,203.49,203.43,2.16420679]
[1757092584391,4.922,203.49,203.44,0.0321267]
[1757092584599,7.92,203.53,203.47,10.25420679]
[1757092586701,2.16420679,203.5,203.44,2.19633349]
[1757092587591,7.92,203.51,203.44,2.19633349]
[1757092587794,7.92,203.51,203.46,2.16420679]
[1757092587997,7.92,203.51,203.47,8.09]
[1757092588198,7.64388751,203.54,203.48,2.16420679]
[1757092588398,7.92,203.55,203.5,2.16420679]
[1757092588800,7.95423095,203.55,203.51,8.09]
[1757092589102,0.03423095,203.55,203.5,2.19984957]
[1757092589400,0.03423095,203.55,203.53,8.09]
[1757092591299,7.95423095,203.55,203.5,8.12564278]
[1757092591497,7.95423095,203.55,203.51,10.25420679]
[1757092591899,0.03423095,203.55,203.52,8.09]
[1757092592098,7.92,203.54,203.5,0.03564278]
[1757092592502,7.92,203.54,203.5,8.12564278]
[1757092592894,0.03423095,203.55,203.5,0.03564278]
[1757092593101,0.03423095,203.55,203.51,10.25420679]
[1757092593299,0.03423095,203.55,203.51,2.16420679]
[1757092593703,0.03423095,203.55,203.52,8.09]
[1757092593903,0.03423095,203.55,203.51,2.16420679]
[1757092594100,0.03423095,203.55,203.52,8.09]
[1757092594403,0.03423095,203.55,203.5,0.03564278]
[1757092594404,0.03423095,203.55,203.53,2.16420679]
[1757092594599,0.03423095,203.55,203.54,8.09]
[1757092594803,0.03423095,203.55,203.54,10.25420679]
[1757092595799,0.03423095,203.55,203.54,10.75420679]
[1757092596599,0.03423095,203.55,203.54,10.25420679]
[1757092597806,0.03423095,203.55,203.54,8.09]
[1757092598007,0.03423095,203.55,203.54,10.25420679]
[1757092599006,0.03423095,203.55,203.54,8.09]
[1757092599203,0.03423095,203.55,203.54,10.25420679]
[1757092601299,7.92,203.64,203.56,8.09]
[1757092601508,2.16420679,203.67,203.6,2.16420679]
[1757092602015,15.00620679,203.68,203.62,2.16420679]
[1757092602408,15.00620679,203.68,203.63,0.03736908]
[1757092602613,7.92,203.65,203.63,0.03736908]
[1757092603312,2.16420679,203.66,203.63,0.03736908]
[1757092603611,7.92,203.65,203.63,0.03736908]
[1757092603918,10.08420679,203.64,203.63,0.03736908]
[1757092605413,7.92,203.64,203.63,0.03736908]
[1757092606213,12.842,203.64,203.63,0.03736908]
[1757092607419,7.92,203.64,203.63,0.03736908]
[1757092609416,4.922,203.65,203.63,0.03736908]
[1757092609616,3.37819839,203.69,203.63,0.03736908]
[1757092609820,4.922,203.66,203.63,7.49736908]
[1757092610222,7.54,203.68,203.63,0.03736908]
[1757092610418,3.37819839,203.69,203.63,0.03736908]
[1757092610717,4.922,203.68,203.63,3.41556747]
[1757092610923,7.54,203.73,203.66,3.37819839]
[1757092611523,7.54,203.73,203.67,0.0310891]
[1757092611724,7.54,203.73,203.67,7.4910891]
[1757092612525,4.922,203.77,203.67,7.4910891]
[1757092612526,12.462,203.77,203.67,7.4910891]
[1757092620939,12.462,203.77,203.67,10.86928749]
[1757092621628,12.462,203.77,203.68,7.46]
[1757092622435,7.54,203.74,203.67,0.0310891]
[1757092623942,4.922,203.73,203.67,0.0310891]
[1757092624145,4.922,203.71,203.67,0.0310891]
[1757092624338,7.54,203.7,203.67,0.0310891]
[1757092624736,4.922,203.71,203.67,0.0310891]
[1757092624938,7.54,203.7,203.67,0.0310891]
[1757092625242,7.54,203.68,203.67,0.0310891]
[1757092625933,12.462,203.68,203.67,0.0310891]
[1757092628144,4.922,203.7,203.67,0.0310891]
[1757092628349,3.37819839,203.73,203.67,0.0310891]
[1757092628551,7.54,203.7,203.67,0.0310891]
[1757092628746,3.37819839,203.73,203.67,0.0310891]
[1757092628946,7.54,203.72,203.67,0.0310891]
[1757092629141,3.37819839,203.73,203.67,0.0310891]
[1757092629348,4.915,203.7,203.67,0.0310891]
[1757092629555,12.455,203.69,203.67,0.0310891]
[1757092629744,7.54,203.68,203.67,0.0310891]
[1757092629946,12.455,203.68,203.67,0.0310891]
[1757092631852,12.955,203.68,203.58,7.46]
[1757092632046,12.455,203.64,203.58,7.46]
[1757092632552,4.915,203.65,203.58,7.46]
[1757092633147,4.915,203.67,203.6,10.83819839]
[1757092633951,4.915,203.67,203.6,7.46]
[1757092634248,7.54,203.62,203.59,0.03503106]
[1757092634651,12.455,203.64,203.59,7.49503106]
[1757092634847,7.54,203.63,203.59,0.03503106]
[1757092635154,7.54,203.65,203.59,0.03503106]
[1757092635652,7.54,203.69,203.59,0.03503106]
[1757092636247,7.54,203.69,203.6,7.46]
[1757092636448,4.915,203.68,203.6,7.46]
[1757092636847,12.455,203.67,203.6,7.46]
[1757092638857,12.455,203.67,203.59,0.03503106]
[1757092639459,12.455,203.67,203.59,7.63503106]
[1757092641150,12.455,203.67,203.59,11.01322945]
[1757092644471,5.47968072,203.7,203.6,7.6]
[1757092644667,4.915,203.69,203.63,7.6]
[1757092645167,12.755,203.69,203.63,7.6]
[1757092645467,7.84,203.68,203.64,0.03367358]
[1757092645968,3.37819839,203.67,203.64,0.03367358]
[1757092646369,7.84,203.66,203.64,0.03367358]
[1757092646568,12.755,203.66,203.64,0.03367358]
[1757092647069,7.84,203.65,203.64,0.03367358]
[1757092647457,7.84,203.65,203.52,7.6]
[1757092647458,8.34,203.65,203.52,7.6]
[1757092647659,7.84,203.62,203.52,7.6]
[1757092648861,0.03269548,203.59,203.52,7.6]
[1757092650364,0.03269548,203.59,203.54,3.37819839]
[1757092650766,0.03269548,203.59,203.55,7.6]
[1757092651167,0.03269548,203.59,203.58,7.6]
[1757092651666,0.03269548,203.59,203.58,8.1]
[1757092653472,0.03269548,203.59,203.58,7.6]
[1757092654473,0.03269548,203.59,203.55,7.6]
[1757092654971,0.03269548,203.59,203.54,3.37819839]
[1757092655168,0.03269548,203.59,203.55,7.6]
[1757092655364,0.03269548,203.59,203.54,3.37819839]
[1757092655564,0.03269548,203.59,203.55,7.6]
[1757092655768,0.03269548,203.59,203.51,10.97819839]
[1757092655965,0.03269548,203.59,203.51,7.6]
[1757092656163,7.84,203.56,203.47,7.6]
[1757092656366,3.37819839,203.54,203.47,7.6]
[1757092656570,0.03591111,203.54,203.47,7.6]
[1757092665482,0.03591111,203.54,203.49,2.1639853]
[1757092665781,0.03591111,203.54,203.53,7.6]
[1757092666078,0.03591111,203.54,203.53,9.7639853]
[1757092667078,0.03591111,203.54,203.51,9.7639853]
[1757092667278,0.03591111,203.54,203.52,7.6]
[1757092667881,0.03591111,203.54,203.41,316.32]
[1757092667882,2.19989641,203.54,203.48,2.1639853]
[1757092668273,2.1639853,203.54,203.48,2.1639853]
[1757092668581,0.03644502,203.53,203.51,7.53]
[1757092668774,0.03644502,203.53,203.5,2.1639853]
[1757092669081,0.03644502,203.53,203.51,7.53]
[1757092671486,0.03644502,203.53,203.52,9.6939853]
[1757092674283,0.03644502,203.53,203.52,7.53]
[1757092675683,0.03644502,203.53,203.5,9.6939853]
[1757092675880,0.03644502,203.53,203.51,7.53]
[1757092676275,0.03644502,203.53,203.51,2.1639853]
[1757092676484,0.03644502,203.53,203.52,7.53]
[1757092681494,0.03644502,203.53,203.52,9.6939853]
[1757092683797,0.03644502,203.53,203.5,9.6939853]
[1757092684096,0.03644502,203.53,203.51,7.53]
[1757092684690,0.03644502,203.53,203.52,9.6939853]
[1757092686296,4.915,203.58,203.52,9.6939853]
[1757092686503,4.915,203.58,203.57,2.1639853]
[1757092686695,12.975,203.61,203.57,9.6939853]
[1757092687596,2.1639853,203.63,203.57,9.6939853]
[1757092687597,8.06,203.6,203.57,0.03579969]
[1757092688700,8.06,203.58,203.57,0.03579969]
[1757092689199,8.56,203.58,203.57,0.03579969]
[1757092693603,13.475,203.58,203.57,0.03579969]
[1757092694399,15.6389853,203.58,203.57,0.03579969]
[1757092694702,13.475,203.58,203.57,0.03579969]
[1757092694900,15.6389853,203.58,203.57,0.03579969]
[1757092695304,15.6389853,203.58,203.46,7.53]
[1757092695500,2.1639853,203.52,203.46,7.53]
[1757092696405,2.1639853,203.52,203.48,7.53]
[1757092696703,0.03335088,203.51,203.48,7.53]
[1757092697402,0.03335088,203.51,203.46,2.1639853]
[1757092697601,0.03335088,203.51,203.47,7.53]
[1757092697996,0.03335088,203.51,203.46,2.1639853]
[1757092699402,0.03335088,203.51,203.47,7.89]
[1757092699608,0.03335088,203.51,203.46,2.1639853]
[1757092700106,0.03335088,203.51,203.47,7.89]
[1757092700300,0.03335088,203.51,203.46,2.1639853]
[1757092700499,0.03335088,203.51,203.48,2.1639853]
[1757092700702,0.03335088,203.51,203.49,7.89]
[1757092701301,0.03335088,203.51,203.42,29.24]
[1757092701302,0.03335088,203.51,203.5,10.0539853]
[1757092706304,5.47968072,203.59,203.52,7.89]
[1757092706506,7.65,203.6,203.56,10.0539853]
[1757092706816,7.65,203.6,203.47,68.8005]
[1757092706817,5.47968072,203.62,203.59,7.89]
[1757092707010,13.12968072,203.64,203.59,7.89]
[1757092707207,5.47968072,203.64,203.61,7.89]
[1757092707508,7.65,203.63,203.6,2.1639853]
[1757092708004,5.47968072,203.64,203.59,0.03292682]
[1757092708005,7.64366602,203.64,203.59,0.03292682]
[1757092708310,7.0789853,203.62,203.59,0.03292682]
[1757092708510,4.915,203.61,203.59,0.03292682]
[1757092708708,12.565,203.61,203.59,0.03292682]
[1757092709107,7.65,203.6,203.59,0.03292682]
[1757092709413,9.8139853,203.6,203.59,0.03292682]
[1757092709914,7.65,203.6,203.59,0.03292682]
[1757092710112,9.8139853,203.6,203.59,0.03292682]
[1757092710512,14.7289853,203.6,203.59,0.03292682]
[1757092710709,9.8139853,203.6,203.59,0.03292682]
[1757092711714,14.7289853,203.6,203.59,0.03292682]
[1757092713013,15.2289853,203.6,203.59,0.03292682]
[1757092713515,13.065,203.6,203.49,7.89]
[1757092713808,2.1639853,203.55,203.49,7.89]
[1757092714614,0.03166132,203.54,203.48,2.1639853]
[1757092714810,0.03166132,203.54,203.48,10.0539853]
[1757092715404,9.8139853,203.53,203.48,7.89]
[1757092716711,9.8139853,203.53,203.45,2.1639853]
[1757092717305,0.03662126,203.51,203.45,2.1639853]
[1757092717714,0.03662126,203.51,203.43,7.89]
[1757092717914,0.03662126,203.51,203.45,2.1639853]
[1757092719910,0.03662126,203.51,203.45,10.0539853]
[1757092720217,0.03662126,203.51,203.48,7.89]
[1757092720422,0.03662126,203.51,203.47,2.1639853]
[1757092720720,0.03662126,203.51,203.48,7.89]
[1757092720916,0.03662126,203.51,203.44,7.89]
[1757092721216,9.8139853,203.46,203.38,2.1639853]
[1757092721415,2.1639853,203.41,203.36,7.89]
[1757092721611,2.1639853,203.41,203.33,318.6439853]
[1757092721612,7.65,203.4,203.33,318.6439853]
[1757092722013,0.0349929,203.39,203.33,318.6439853]
[1757092724220,2.1639853,203.38,203.32,7.89]
[1757092725016,2.1639853,203.36,203.27,7.89]
[1757092725215,2.1639853,203.36,203.28,2.1639853]
[1757092725518,0.03222097,203.34,203.28,2.1639853]
[1757092726023,2.19620627,203.34,203.27,10.0539853]
[1757092726919,2.19620627,203.34,203.28,0.03638434]
[1757092727420,0.03222097,203.34,203.28,0.03638434]
[1757092729227,7.79222097,203.34,203.28,0.03638434]
[1757092730217,0.03222097,203.34,203.28,0.03638434]
[1757092730419,0.03222097,203.34,203.29,7.44]
[1757092730619,0.03222097,203.34,203.28,0.03638434]
[1757092730817,0.03222097,203.34,203.28,7.47638434]
[1757092731824,7.79222097,203.34,203.28,7.47638434]
[1757092732720,7.79222097,203.34,203.28,0.03638434]
[1757092736624,12.70722097,203.34,203.28,0.03638434]
[1757092737524,7.79222097,203.34,203.28,0.03638434]
[1757092737929,0.03222097,203.34,203.28,0.03638434]
[1757092738425,7.79222097,203.34,203.28,0.03638434]
[1757092746227,7.76,203.31,203.28,0.03638434]
[1757092746737,3.38817565,203.32,203.28,0.03638434]
[1757092746926,7.76,203.31,203.28,0.03638434]
[1757092747235,3.38817565,203.32,203.28,0.03638434]
[1757092748237,7.76,203.31,203.28,0.03638434]
[1757092748635,3.38817565,203.29,203.28,0.03638434]
[1757092748935,11.14817565,203.29,203.28,0.03638434]
[1757092749132,11.14817565,203.29,203.2,7.44]
[1757092750339,0.03122425,203.27,203.2,7.44]
[1757092753739,0.03122425,203.27,203.21,7.44]
[1757092757650,0.03122425,203.27,203.23,7.44]
[1757092758049,0.03122425,203.27,203.22,3.38817565]
[1757092759345,0.03122425,203.27,203.23,7.9]
[1757092759740,0.03122425,203.27,203.22,3.38817565]
[1757092759946,0.03122425,203.27,203.19,11.28817565]
[1757092761644,7.4,203.26,203.19,7.9]
[1757092763653,0.03122425,203.27,203.2,7.9]
[1757092768159,0.03122425,203.27,203.21,7.9]
[1757092772259,7.4,203.26,203.2,7.9]
[1757092772761,0.03122425,203.27,203.2,7.9]
[1757092779868,12.34622425,203.27,203.2,7.9]
[1757092781671,12.34622425,203.27,203.16,7.9]
[1757092783765,12.34622425,203.27,203.16,4.4295]
[1757092783966,12.34622425,203.27,203.17,7.9]
[1757092787677,12.315,203.24,203.19,2.17038372]
[1757092787972,12.315,203.24,203.2,7.9]
[1757092788377,12.34846397,203.24,203.2,7.9]
[1757092788880,12.34846397,203.24,203.2,7.52]
[1757092789372,0.03346397,203.24,203.22,7.52]
[1757092789573,7.89,203.23,203.19,9.69038372]
[1757092789765,0.03346397,203.24,203.2,7.52]
[1757092790374,7.92346397,203.24,203.2,7.52]
[1757092790777,7.92346397,203.24,203.19,2.17038372]
[1757092791770,0.03346397,203.24,203.21,2.17038372]
[1757092791975,0.03346397,203.24,203.23,9.69038372]
[1757092792376,5.51026725,203.32,203.24,7.52]
[1757092792575,4.915,203.33,203.3,7.52]
[1757092792772,5.51026725,203.34,203.3,7.52]
[1757092792976,13.40026725,203.34,203.3,7.52]
[1757092793678,7.89,203.33,203.3,7.52]
[1757092793971,7.68065097,203.33,203.3,0.03378107]
[1757092794178,7.89,203.32,203.3,0.03378107]
[1757092794475,14.97538372,203.31,203.3,0.03378107]
[1757092794974,15.57065097,203.31,203.3,0.03378107]
[1757092795180,16.07065097,203.31,203.3,0.03378107]
[1757092795579,20.98565097,203.31,203.3,0.03378107]
[1757092795770,15.47538372,203.31,203.3,0.03378107]
[1757092797277,18.32872794,203.31,203.3,0.03378107]
[1757092797478,12.805,203.31,203.3,0.03378107]
[1757092797878,7.89,203.31,203.3,0.03378107]
[1757092798078,12.805,203.31,203.3,0.03378107]
[1757092798480,7.89,203.31,203.3,0.03378107]
[1757092798680,13.41372794,203.31,203.3,0.03378107]
[1757092798880,18.32872794,203.31,203.3,0.03378107]
[1757092799787,14.97538372,203.31,203.3,0.03378107]
[1757092799984,20.49911166,203.31,203.3,0.03378107]
[1757092800285,14.97538372,203.31,203.3,0.03378107]
[1757092801582,20.49911166,203.31,203.3,0.03378107]
[1757092801778,14.97538372,203.31,203.3,0.03378107]
[1757092802083,20.49758557,203.31,203.3,0.03378107]
[1757092802284,15.47538372,203.31,203.22,7.52]
[1757092802484,7.89,203.25,203.22,7.52]
[1757092803481,7.89,203.25,203.2,2.17038372]
[1757092803681,7.89,203.25,203.21,7.52]
[1757092804084,7.89,203.25,203.2,2.17038372]
[1757092804285,12.805,203.25,203.21,7.52]
[1757092804583,7.89,203.25,203.21,7.52]
[1757092804987,4.915,203.24,203.18,9.69038372]
[1757092806885,4.915,203.24,203.18,2.17038372]
[1757092807081,4.915,203.24,203.21,7.52]
[1757092807283,4.915,203.24,203.2,2.17038372]
[1757092807479,4.915,203.24,203.21,7.52]
[1757092807788,4.94825315,203.24,203.21,7.52]
[1757092807981,4.94825315,203.24,203.2,2.17038372]
[1757092808286,4.915,203.23,203.21,7.52]
[1757092808480,4.915,203.23,203.2,2.17038372]
[1757092808686,4.915,203.23,203.21,7.52]
[1757092808879,4.915,203.23,203.2,2.17038372]
[1757092809080,0.03325315,203.24,203.2,2.17038372]
[1757092809277,0.03325315,203.24,203.23,7.52]
[1757092809686,5.52270789,203.33,203.23,8.02]
[1757092809882,13.41270789,203.33,203.29,7.52]
[1757092810082,7.89,203.33,203.29,7.52]
[1757092810877,7.92561417,203.33,203.29,7.52]
[1757092811082,12.84061417,203.33,203.29,7.52]
[1757092812491,12.805,203.32,203.29,7.52]
[1757092812794,12.805,203.32,203.27,9.69038372]
[1757092813090,7.89,203.31,203.27,7.52]
[1757092813291,7.89,203.31,203.27,9.69038372]
[1757092813487,4.95061417,203.33,203.27,2.17038372]
[1757092813688,4.95061417,203.33,203.27,9.69038372]
[1757092814392,7.89,203.32,203.27,9.69038372]
[1757092814692,7.89,203.31,203.27,9.69038372]
[1757092814889,7.89,203.31,203.25,2.17038372]
[1757092815090,2.17038372,203.3,203.23,9.69038372]
[1757092815495,10.06038372,203.28,203.23,9.69038372]
[1757092815791,10.06038372,203.28,203.24,7.52]
[1757092816190,10.06038372,203.28,203.21,9.69038372]
[1757092816492,7.89,203.25,203.21,7.52]
[1757092817284,7.89,203.25,203.19,2.17038372]
[1757092817898,7.89,203.25,203.19,9.69038372]
[1757092822700,4.915,203.24,203.19,9.69038372]
[1757092822892,4.915,203.24,203.19,2.17038372]
[1757092823092,13.065,203.24,203.2,8.14]
[1757092823792,4.915,203.24,203.2,8.14]
[1757092823998,8.15,203.23,203.2,8.14]
[1757092824395,2.17038372,203.25,203.19,10.31038372]
[1757092828102,2.17038372,203.25,203.19,8.14]
[1757092828791,2.17038372,203.25,203.19,10.31038372]
[1757092830099,4.915,203.26,203.2,8.14]
[1757092830303,4.94868655,203.27,203.21,2.17038372]
[1757092831505,0.03368655,203.27,203.23,2.17038372]
[1757092831703,0.03368655,203.27,203.24,8.14]
[1757092831909,7.69309161,203.31,203.25,2.17038372]
[1757092832110,0.03290122,203.28,203.26,8.14]
[1757092832812,8.18290122,203.28,203.24,8.14]
[1757092833010,8.15,203.27,203.24,8.14]
[1757092833805,8.15,203.27,203.23,2.17038372]
[1757092834208,13.065,203.27,203.21,8.14]
[1757092834411,8.15,203.25,203.21,8.14]
[1757092835013,4.915,203.27,203.21,8.14]
[1757092836105,4.915,203.27,203.22,2.17038372]
[1757092836309,13.065,203.27,203.23,8.14]
[1757092836715,13.09661893,203.27,203.23,8.14]
[1757092837216,13.09661893,203.27,203.22,2.17038372]
[1757092837412,13.09661893,203.27,203.23,8.14]
[1757092837817,4.915,203.26,203.24,2.17038372]
[1757092838017,0.03161893,203.27,203.25,8.14]
[1757092839116,0.03161893,203.27,203.24,2.17038372]
[1757092839421,0.03161893,203.27,203.25,8.14]
[1757092839718,0.03161893,203.27,203.24,8.14]
[1757092840117,0.03161893,203.27,203.26,8.14]
[1757092840614,8.18161893,203.27,203.21,8.14]
[1757092840815,2.17038372,203.26,203.21,8.14]
[1757092841020,8.15,203.25,203.19,2.17038372]
[1757092843620,8.15,203.25,203.18,8.14]
[1757092843822,8.15,203.22,203.18,8.14]
[1757092844218,2.17038372,203.23,203.18,8.14]
[1757092844523,8.18258666,203.22,203.18,8.14]
[1757092844724,10.35297038,203.22,203.18,8.14]
[1757092844919,0.03258666,203.22,203.17,8.14]
[1757092845125,0.03258666,203.22,203.19,8.14]
[1757092845324,0.03258666,203.22,203.13,4.4302]
[1757092845523,0.03258666,203.22,203.17,2.17038372]
[1757092846124,0.03258666,203.22,203.18,8.14]
[1757092846320,0.03258666,203.22,203.17,2.17038372]
[1757092847019,0.03258666,203.22,203.18,8.14]
[1757092847526,8.15,203.32,203.22,8.14]
[1757092847728,8.15,203.32,203.29,2.17038372]
[1757092848725,4.915,203.31,203.29,2.17038372]
[1757092848928,8.15,203.32,203.29,2.17038372]
[1757092849523,8.15,203.32,203.28,0.03270172]
[1757092850027,4.915,203.35,203.28,0.03270172]
[1757092850528,7.51,203.36,203.29,3.3881038]
[1757092851521,12.425,203.36,203.29,3.3881038]
[1757092851728,7.51,203.36,203.29,3.3881038]
[1757092852430,7.51,203.36,203.28,0.03270172]
[1757092852632,7.51,203.36,203.28,3.42080552]
[1757092853328,4.915,203.35,203.28,3.42080552]
[1757092857327,12.425,203.34,203.28,3.42080552]
[1757092859329,12.425,203.34,203.28,0.03270172]
[1757092859534,21.33581169,203.34,203.28,0.03270172]
[1757092859737,4.915,203.3,203.28,0.03270172]
[1757092859934,12.425,203.29,203.28,0.03270172]
[1757092860440,12.925,203.29,203.17,8.13]
[1757092860733,7.51,203.26,203.17,8.13]
[1757092861035,12.425,203.26,203.17,8.13]
[1757092861738,0.03638739,203.24,203.17,8.13]
[1757092863533,0.03638739,203.24,203.19,3.3881038]
[1757092864434,0.03638739,203.24,203.2,4.4286]
[1757092864634,0.03638739,203.24,203.21,8.13]
[1757092865639,0.03638739,203.24,203.2,4.4286]
[1757092865933,0.03638739,203.24,203.22,3.3881038]
[1757092866130,0.03638739,203.24,203.23,8.13]
[1757092866533,0.03638739,203.24,203.23,8.63]
[1757092866734,7.51,203.34,203.23,8.63]
[1757092866934,7.51,203.34,203.28,8.13]
[1757092867839,12.425,203.33,203.29,0.03463821]
[1757092868035,12.425,203.33,203.29,8.16463821]
[1757092868437,7.51,203.33,203.29,8.16463821]
[1757092868939,4.915,203.34,203.3,8.13]
[1757092870037,7.51,203.34,203.3,8.13]
[1757092870336,76.04568138,203.35,203.3,8.13]
[1757092870529,7.51,203.34,203.29,0.03463821]
[1757092871231,7.51,203.32,203.29,0.03463821]
[1757092871538,4.915,203.33,203.29,0.03463821]
[1757092871730,7.51,203.32,203.29,0.03463821]
[1757092872435,4.915,203.33,203.29,0.03463821]
[1757092872638,7.51,203.32,203.29,0.03463821]
[1757092873143,4.915,203.34,203.29,0.03463821]
[1757092873334,4.915,203.33,203.29,0.03463821]
[1757092873535,7.51,203.32,203.29,0.03463821]
[1757092873734,4.915,203.33,203.29,8.16463821]
[1757092874237,4.915,203.34,203.29,8.16463821]
[1757092874443,12.425,203.34,203.29,8.16463821]
[1757092874734,76.04568138,203.35,203.29,0.03463821]
[1757092874940,76.04568138,203.35,203.29,8.16463821]
[1757092875939,80.96068138,203.35,203.29,8.16463821]
[1757092876540,76.04568138,203.35,203.29,8.16463821]
[1757092876942,5.52270789,203.39,203.3,8.13]
[1757092877245,7.51,203.4,203.32,11.5181038]
[1757092877447,7.51,203.4,203.32,8.13]
[1757092877745,7.51,203.4,203.34,0.03150167]
[1757092877937,7.51,203.4,203.34,8.16150167]
[1757092878245,13.03270789,203.44,203.34,11.54960547]
[1757092878441,7.51,203.44,203.35,4.4253]
[1757092878641,7.51,203.44,203.37,3.3881038]
[1757092878843,7.51,203.44,203.38,8.14]
[1757092879040,7.51,203.44,203.38,8.17335839]
[1757092879234,4.915,203.43,203.39,8.14]
[1757092879439,12.92270789,203.48,203.39,8.14]
[1757092879637,7.4,203.48,203.4,3.3881038]
[1757092880037,12.315,203.48,203.4,3.3881038]
[1757092880240,7.4,203.48,203.4,3.3881038]
[1757092883246,7.4,203.48,203.41,8.14]
[1757092883944,7.4,203.48,203.42,0.03479266]
[1757092885434,12.315,203.48,203.42,0.03479266]
[1757092888048,7.4,203.52,203.43,11.5281038]
[1757092888950,7.4,203.52,203.43,8.14]
[1757092889545,12.315,203.52,203.43,8.14]
[1757092890857,7.4,203.52,203.45,3.3881038]
[1757092891153,7.4,203.52,203.46,8.14]
[1757092891450,7.4,203.52,203.46,8.17678615]
[1757092891750,3.3881038,203.56,203.46,8.17678615]
[1757092892052,7.4,203.56,203.48,3.3881038]
[1757092893354,7.4,203.56,203.49,8.14]
[1757092894358,7.4,203.56,203.5,0.03546748]
[1757092895443,7.4,203.62,203.54,3.3881038]
[1757092895951,7.4,203.62,203.56,0.03666452]
[1757092902347,12.315,203.62,203.56,0.03666452]
[1757092909464,2.16306767,203.6,203.56,0.03666452]
[1757092909754,7.58,203.59,203.56,0.03666452]
[1757092909959,7.58,203.57,203.56,0.03666452]
[1757092912263,7.58,203.59,203.56,0.03666452]
[1757092913657,7.58,203.59,203.56,2.19973219]
[1757092914059,7.58,203.62,203.56,9.87973219]
[1757092915361,7.58,203.62,203.56,9.67973219]
[1757092915660,0.03466418,203.61,203.58,2.16306767]
[1757092915860,0.03466418,203.61,203.58,9.84306767]
[1757092916060,7.58,203.62,203.58,9.84306767]
[1757092916560,2.16306767,203.63,203.57,2.16306767]
[1757092916764,7.58,203.61,203.57,2.16306767]
[1757092917760,0.03666986,203.62,203.57,2.16306767]
[1757092918064,7.58,203.6,203.54,2.16306767]
[1757092918263,0.03666986,203.62,203.52,2.16306767]
[1757092918264,7.58,203.58,203.52,2.16306767]
[1757092918463,2.16306767,203.57,203.51,7.68]
[1757092918856,0.03146883,203.56,203.51,7.68]
[1757092919063,2.16306767,203.55,203.49,2.16306767]
[1757092919566,7.58,203.52,203.45,2.16306767]
[1757092920166,0.03439653,203.51,203.45,2.16306767]
[1757092920365,2.1974642,203.51,203.45,2.16306767]
[1757092921662,0.03439653,203.51,203.48,7.68]
[1757092921866,0.03439653,203.51,203.47,2.16306767]
[1757092922674,0.03439653,203.51,203.48,7.68]
[1757092922968,0.03439653,203.51,203.47,2.16306767]
[1757092923574,0.03439653,203.51,203.48,7.68]
[1757092923768,0.03439653,203.51,203.47,2.16306767]
[1757092924171,0.03439653,203.51,203.48,7.68]
[1757092924572,0.03439653,203.51,203.47,2.16306767]
[1757092924977,0.03439653,203.51,203.47,9.84306767]
[1757092925170,0.03439653,203.51,203.47,2.16306767]
[1757092925367,0.03439653,203.51,203.48,7.68]
[1757092925676,0.03439653,203.51,203.47,2.16306767]
[1757092926372,0.03439653,203.51,203.48,7.68]
[1757092926675,0.03439653,203.51,203.47,2.16306767]
[1757092927278,0.03439653,203.51,203.48,7.68]